bitfinex/quotes_BTCUSD_20250604
["timestamp","ask_amount","ask_price","bid_price","bid_amount"]
[1749020603704,0.01190502,105290.0,105280.0,6.93179352]
[1749020603943,0.01190502,105290.0,105280.0,7.76791652]
[1749020604192,0.01190502,105290.0,105280.0,6.92596652]
[1749020604409,0.01190502,105290.0,105280.0,6.48475452]
[1749020604802,0.01190502,105290.0,105280.0,3.05097352]
[1749020605053,0.01190502,105290.0,105280.0,6.67073552]
[1749020605488,0.01190502,105290.0,105280.0,6.50729352]
[1749020605908,0.01190502,105290.0,105280.0,3.05097352]
[1749020606124,0.01190502,105290.0,105280.0,7.14870452]
[1749020606336,0.01190502,105290.0,105280.0,6.38215052]
[1749020606509,0.01190502,105290.0,105280.0,5.14647952]
[1749020607052,0.01190502,105290.0,105280.0,5.30642052]
[1749020607274,0.01190502,105290.0,105280.0,4.55936273]
[1749020607954,0.01190502,105290.0,105280.0,4.94580673]
[1749020608175,0.01190502,105290.0,105280.0,4.05825673]
[1749020608397,0.01190502,105290.0,105280.0,3.97669673]
[1749020609109,0.01190502,105290.0,105280.0,4.75761673]
[1749020609346,0.01190502,105290.0,105280.0,4.30681773]
[1749020609992,0.01190502,105290.0,105280.0,4.91377773]
[1749020610208,0.01190502,105290.0,105280.0,5.12868573]
[1749020610424,0.01190502,105290.0,105280.0,4.85097973]
[1749020611099,0.01190502,105290.0,105280.0,3.26166273]
[1749020611316,0.01190502,105290.0,105280.0,4.58989073]
[1749020611533,0.01190502,105290.0,105280.0,3.50906915]
[1749020611756,0.01190502,105290.0,105280.0,4.35434273]
[1749020612203,0.01190502,105290.0,105280.0,2.63838273]
[1749020612458,0.01190502,105290.0,105280.0,3.07068873]
[1749020612687,0.01190502,105290.0,105280.0,2.27262273]
[1749020614906,0.01190502,105290.0,105280.0,1.98442273]
[1749020615101,0.01190502,105290.0,105280.0,1.48008115]
[1749020615328,0.01190502,105290.0,105280.0,2.27262273]
[1749020616242,0.04300502,105290.0,105280.0,2.27262273]
[1749020616466,0.01190502,105290.0,105280.0,2.27262273]
[1749020619958,0.01190502,105290.0,105280.0,2.87958273]
[1749020622023,0.01190502,105290.0,105280.0,2.60638273]
[1749020625881,0.01190502,105290.0,105280.0,2.27262273]
[1749020627994,0.01190502,105290.0,105280.0,2.75912273]
[1749020629888,0.01190502,105290.0,105280.0,3.03232273]
[1749020630094,0.01190502,105290.0,105280.0,3.36608273]
[1749020631005,0.01190502,105290.0,105280.0,3.02608273]
[1749020632119,0.01190502,105290.0,105280.0,1.67214115]
[1749020632331,0.01190502,105290.0,105280.0,2.75284273]
[1749020633436,0.01190502,105290.0,105280.0,3.09284273]
[1749020634111,0.01190502,105290.0,105280.0,2.84696273]
[1749020634577,0.01190502,105290.0,105280.0,3.05028773]
[1749020634585,0.01190502,105290.0,105280.0,3.06608773]
[1749020634795,0.01190502,105290.0,105280.0,3.52885852]
[1749020635225,0.01190502,105290.0,105280.0,5.33598952]
[1749020636303,0.01190502,105290.0,105280.0,6.10646752]
[1749020636504,0.01190502,105290.0,105280.0,5.60460852]
[1749020637296,0.01190502,105290.0,105280.0,6.22129952]
[1749020637523,0.01190502,105290.0,105280.0,5.79476973]
[1749020637741,0.01190502,105290.0,105280.0,5.66778173]
[1749020638169,0.01190502,105290.0,105280.0,5.12926973]
[1749020638377,0.01190502,105290.0,105280.0,5.22096773]
[1749020638602,0.01190502,105290.0,105280.0,5.21035673]
[1749020638826,0.01190502,105290.0,105280.0,5.17406673]
[1749020639248,0.01190502,105290.0,105280.0,4.80913973]
[1749020639494,0.01190502,105290.0,105280.0,5.07107273]
[1749020639721,0.01190502,105290.0,105280.0,5.55757273]
[1749020639938,0.01190502,105290.0,105280.0,6.16453273]
[1749020640358,0.01190502,105290.0,105280.0,6.19655073]
[1749020640793,0.01190502,105290.0,105280.0,5.09356873]
[1749020641453,0.01190502,105290.0,105280.0,3.63347273]
[1749020642360,0.01190502,105290.0,105280.0,3.61697273]
[1749020643443,0.01190502,105290.0,105280.0,3.09789273]
[1749020647917,0.01190502,105290.0,105280.0,2.99421273]
[1749020648349,0.01190502,105290.0,105280.0,3.01051273]
[1749020649436,0.01190502,105290.0,105280.0,2.99421273]
[1749020650149,0.01190502,105290.0,105280.0,3.60117273]
[1749020650582,0.01190502,105290.0,105280.0,4.20117273]
[1749020651857,0.01190502,105290.0,105280.0,3.92797273]
[1749020652285,0.01190502,105290.0,105280.0,3.44696273]
[1749020652508,0.01190502,105290.0,105280.0,3.07092273]
[1749020652721,0.01190502,105290.0,105280.0,3.35908273]
[1749020652938,0.01190502,105290.0,105280.0,3.61421673]
[1749020655558,0.01190502,105290.0,105280.0,3.91421673]
[1749020657301,0.01190502,105290.0,105280.0,2.83351515]
[1749020657564,0.01190502,105290.0,105280.0,3.65904273]
[1749020657984,0.01190502,105290.0,105280.0,3.91381673]
[1749020658190,0.01190502,105290.0,105280.0,3.77580773]
[1749020659978,0.01190502,105290.0,105280.0,4.38276773]
[1749020661111,0.01190502,105290.0,105280.0,3.59022615]
[1749020661348,0.01190502,105290.0,105280.0,3.99280273]
[1749020661611,0.01190502,105290.0,105280.0,2.66626115]
[1749020661838,0.01190502,105290.0,105280.0,3.74692273]
[1749020662537,0.04340502,105290.0,105280.0,3.07092273]
[1749020662778,0.04340502,105290.0,105280.0,1.63465194]
[1749020663013,0.04340502,105290.0,105280.0,0.7088543]
[1749020663241,0.04340502,105290.0,105280.0,1.10512509]
[1749020663461,0.04340502,105290.0,105280.0,1.39324509]
[1749020664133,0.04340502,105290.0,105280.0,0.9969743]
[1749020664353,0.04340502,105290.0,105280.0,1.39324509]
[1749020667575,0.04340502,105290.0,105280.0,0.9969743]
[1749020667791,0.04340502,105290.0,105280.0,1.39324509]
[1749020668031,0.04340502,105290.0,105280.0,1.10512509]
[1749020668252,0.04340502,105290.0,105280.0,1.39328509]
[1749020669364,0.04340502,105290.0,105280.0,1.10512509]
[1749020669587,0.04340502,105290.0,105280.0,0.9970143]
[1749020670036,0.04340502,105290.0,105280.0,1.6039343]
[1749020670725,0.04340502,105290.0,105280.0,2.00020509]
[1749020671413,0.04340502,105290.0,105280.0,1.62420509]
[1749020671641,0.04340502,105290.0,105280.0,2.00024509]
[1749020673428,0.04340502,105290.0,105280.0,1.6039743]
[1749020673646,0.04340502,105290.0,105280.0,1.3307743]
[1749020675213,0.04340502,105290.0,105280.0,1.72704509]
[1749020675671,0.04340502,105290.0,105280.0,1.39328509]
[1749020676507,0.04340502,105290.0,105280.0,1.79328509]
[1749020679915,0.04340502,105290.0,105280.0,2.31244509]
[1749020680143,0.04340502,105290.0,105280.0,2.40032509]
[1749020683418,0.04340502,105290.0,105280.0,2.12708509]
[1749020687338,0.04340502,105290.0,105280.0,1.88116509]
[1749020688636,0.04340502,105290.0,105280.0,1.79328509]
[1749020689931,0.04340502,105290.0,105280.0,2.40032509]
[1749020694772,0.04340502,105290.0,105280.0,1.88116509]
[1749020696658,0.04340502,105290.0,105280.0,1.79328509]
[1749020697118,0.04340502,105290.0,105280.0,1.50512509]
[1749020697567,0.04340502,105290.0,105280.0,1.3970143]
[1749020697788,0.04340502,105290.0,105280.0,1.79328509]
[1749020699989,0.04340502,105290.0,105280.0,2.40032509]
[1749020700683,0.01190502,105290.0,105280.0,2.79659588]
[1749020701185,0.01190502,105290.0,105280.0,2.32317673]
[1749020701402,0.01190502,105290.0,105280.0,2.35341863]
[1749020702381,0.42619391,105310.0,105280.0,2.32317673]
[1749020702604,0.42619391,105310.0,105290.0,0.49449912]
[1749020702850,0.02992312,105310.0,105300.0,0.3762]
[1749020703300,0.02992312,105310.0,105300.0,0.7762]
[1749020703795,0.03092312,105310.0,105300.0,0.7762]
[1749020704215,0.02992312,105310.0,105300.0,0.7762]
[1749020704646,0.02992312,105310.0,105300.0,0.7782]
[1749020705076,0.02992312,105310.0,105300.0,0.7802]
[1749020705298,0.02992312,105310.0,105300.0,0.78963967]
[1749020706165,0.02992312,105310.0,105300.0,0.96549397]
[1749020706397,0.02992312,105310.0,105300.0,0.56549397]
[1749020706813,0.02992312,105310.0,105300.0,0.96549397]
[1749020708615,0.42619391,105310.0,105300.0,0.96549397]
[1749020709034,0.02992312,105310.0,105300.0,0.96549397]
[1749020710090,0.02992312,105310.0,105300.0,1.48465397]
[1749020711199,0.02992312,105310.0,105300.0,1.21141397]
[1749020711409,0.0165,105310.0,105300.0,1.21141397]
[1749020714416,0.0316,105310.0,105300.0,1.21141397]
[1749020715074,0.0165,105310.0,105300.0,0.87761397]
[1749020715999,0.0324,105310.0,105300.0,0.87761397]
[1749020717289,0.42867079,105310.0,105300.0,0.58929397]
[1749020717503,0.42867079,105310.0,105300.0,0.87753397]
[1749020719956,0.42867079,105310.0,105300.0,1.48453397]
[1749020720384,0.42867079,105310.0,105300.0,1.48445397]
[1749020721182,0.42867079,105310.0,105300.0,1.10845397]
[1749020721405,0.42867079,105310.0,105300.0,1.48445397]
[1749020722108,0.42867079,105310.0,105300.0,1.08445397]
[1749020722366,0.42867079,105310.0,105300.0,0.691]
[1749020722599,0.42867079,105310.0,105300.0,0.611]
[1749020722835,1.16494158,105310.0,105300.0,0.611]
[1749020723053,1.16494158,105310.0,105300.0,0.89932]
[1749020723310,1.16494158,105310.0,105300.0,0.611]
[1749020723521,1.16494158,105310.0,105300.0,0.89944]
[1749020723750,1.16494158,105310.0,105300.0,0.8994]
[1749020730106,1.16494158,105310.0,105300.0,0.611]
[1749020730343,1.16494158,105310.0,105300.0,0.89928]
[1749020731853,0.76867079,105310.0,105300.0,0.89928]
[1749020735172,0.3724,105310.0,105300.0,0.89928]
[1749020735387,0.76867079,105310.0,105300.0,0.89928]
[1749020736459,0.3724,105310.0,105300.0,0.89928]
[1749020736707,0.76867079,105310.0,105300.0,0.89928]
[1749020737375,0.76867079,105310.0,105300.0,0.89976]
[1749020739537,0.42867079,105310.0,105300.0,0.89976]
[1749020740012,0.0324,105310.0,105300.0,1.19976]
[1749020740253,0.39627079,105320.0,105300.0,0.89976]
[1749020740473,0.76817079,105320.0,105300.0,0.89976]
[1749020741126,0.76817079,105320.0,105300.0,0.91376]
[1749020741819,0.76817079,105320.0,105300.0,0.91576]
[1749020742469,0.39627079,105310.0,105300.0,0.91576]
[1749020743613,0.39627079,105310.0,105300.0,0.91376]
[1749020743852,0.39627079,105310.0,105300.0,0.91576]
[1749020744088,0.39627079,105310.0,105300.0,0.91376]
[1749020744330,0.39627079,105310.0,105300.0,0.91576]
[1749020744788,0.39627079,105310.0,105300.0,0.89976]
[1749020749091,0.39627079,105320.0,105310.0,0.3]
[1749020749359,0.39627079,105320.0,105300.0,1.42398509]
[1749020750016,0.39627079,105320.0,105300.0,1.42198509]
[1749020750657,0.39627079,105320.0,105300.0,1.41998509]
[1749020750868,0.39627079,105320.0,105310.0,0.001]
[1749020751306,0.39627079,105320.0,105300.0,1.42198509]
[1749020751775,0.39627079,105320.0,105300.0,1.42398509]
[1749020753204,0.39627079,105320.0,105300.0,1.42198509]
[1749020754121,0.39627079,105320.0,105300.0,1.42398509]
[1749020754361,0.39627079,105320.0,105310.0,0.08796]
[1749020756627,0.39627079,105320.0,105310.0,0.08896]
[1749020757701,0.39627079,105320.0,105310.0,0.08896]
[1749020758580,0.39627079,105320.0,105310.0,0.37856]
[1749020758799,0.0326,105330.0,105310.0,0.37856]
[1749020759021,0.39627079,105320.0,105310.0,0.37856]
[1749020759269,0.0326,105330.0,105320.0,0.24592]
[1749020759476,0.42887079,105330.0,105320.0,0.24592]
[1749020760139,0.0326,105330.0,105320.0,0.24592]
[1749020760359,0.42887079,105330.0,105320.0,0.24592]
[1749020760576,0.42896227,105330.0,105320.0,0.24592]
[1749020761034,0.03369148,105330.0,105320.0,0.24592]
[1749020761247,0.42996227,105330.0,105320.0,0.24592]
[1749020762152,0.43096227,105330.0,105320.0,0.24592]
[1749020762372,0.43096227,105330.0,105320.0,0.53544]
[1749020764655,0.43096227,105330.0,105320.0,0.80868]
[1749020769152,0.43096227,105330.0,105320.0,0.80872]
[1749020769375,0.82723306,105330.0,105320.0,0.80872]
[1749020769595,0.43096227,105330.0,105320.0,0.80872]
[1749020769822,0.82723306,105330.0,105320.0,0.80872]
[1749020770527,0.82723306,105330.0,105320.0,0.8976]
[1749020771235,1.16723306,105330.0,105320.0,0.51916]
[1749020771457,1.26308736,105330.0,105320.0,0.89792]
[1749020772367,1.26308736,105330.0,105320.0,0.51916]
[1749020772813,1.26308736,105330.0,105320.0,0.89788]
[1749020774184,1.27218316,105330.0,105320.0,0.6078]
[1749020774432,1.28997095,105330.0,105320.0,0.6078]
[1749020774649,1.27218316,105330.0,105320.0,0.89784]
[1749020774899,1.28997096,105330.0,105320.0,0.89784]
[1749020775107,1.27218281,105330.0,105320.0,0.89784]
[1749020775335,1.28997096,105330.0,105320.0,0.89784]
[1749020775553,1.27218281,105330.0,105320.0,0.89784]
[1749020778878,1.27218001,105330.0,105320.0,0.89784]
[1749020779913,1.28996813,105330.0,105320.0,0.89784]
[1749020780162,1.27218001,105330.0,105320.0,0.89784]
[1749020781824,0.47963843,105330.0,105320.0,0.89784]
[1749020782068,1.27218001,105330.0,105320.0,0.89784]
[1749020782271,1.26308736,105330.0,105320.0,0.89784]
[1749020782717,1.28087618,105330.0,105320.0,0.89784]
[1749020783167,1.29866374,105330.0,105320.0,0.89784]
[1749020784105,1.29866373,105330.0,105320.0,0.89784]
[1749020784332,1.29866374,105330.0,105320.0,0.89784]
[1749020784582,1.28087618,105330.0,105320.0,0.89784]
[1749020784771,1.2986637,105330.0,105320.0,0.89784]
[1749020785907,1.29866264,105330.0,105320.0,0.89792]
[1749020786116,1.29866265,105330.0,105320.0,0.89792]
[1749020786561,1.28087618,105330.0,105320.0,0.89796]
[1749020786782,1.29866265,105330.0,105320.0,0.89796]
[1749020786990,1.28087618,105330.0,105320.0,0.89796]
[1749020787172,1.29866265,105330.0,105320.0,0.89796]
[1749020787467,1.28087618,105330.0,105320.0,0.89796]
[1749020788719,1.29866263,105330.0,105320.0,0.89796]
[1749020788924,1.28087618,105330.0,105320.0,0.89796]
[1749020789567,1.2986626,105330.0,105320.0,0.89796]
[1749020789775,1.28087618,105330.0,105320.0,0.89796]
[1749020790213,1.2986626,105330.0,105320.0,0.89796]
[1749020790642,1.28087618,105330.0,105320.0,0.89796]
[1749020790851,1.2986626,105330.0,105320.0,0.89796]
[1749020791057,1.28087618,105330.0,105320.0,0.89796]
[1749020792791,1.29866239,105330.0,105320.0,0.89796]
[1749020792998,1.28087618,105330.0,105320.0,0.89796]
[1749020794057,1.29866239,105330.0,105320.0,0.89796]
[1749020794277,1.28087618,105330.0,105320.0,0.89796]
[1749020794712,1.28996898,105330.0,105320.0,0.89796]
[1749020794941,0.4974274,105330.0,105320.0,0.89796]
[1749020795195,1.25736898,105330.0,105320.0,0.89796]
[1749020795684,1.27515518,105330.0,105320.0,0.89796]
[1749020795912,1.29025517,105330.0,105320.0,0.89796]
[1749020796111,1.27246898,105330.0,105320.0,0.89796]
[1749020796332,1.28886898,105330.0,105320.0,0.89796]
[1749020796550,1.30665516,105330.0,105320.0,0.89796]
[1749020796760,1.30665516,105330.0,105320.0,0.898]
[1749020797171,1.28886898,105330.0,105320.0,0.898]
[1749020797806,1.30665516,105330.0,105320.0,0.898]
[1749020798013,1.28886898,105330.0,105320.0,0.898]
[1749020798432,1.30665516,105330.0,105320.0,0.898]
[1749020798652,1.28886898,105330.0,105320.0,0.898]
[1749020800476,1.25736898,105330.0,105320.0,0.898]
[1749020800891,1.27515515,105330.0,105320.0,0.898]
[1749020801108,1.28776898,105330.0,105320.0,0.898]
[1749020801323,1.30555515,105330.0,105320.0,0.898]
[1749020801756,1.28776898,105330.0,105320.0,0.898]
[1749020807389,1.27247993,105330.0,105320.0,0.898]
[1749020808541,1.27516594,105330.0,105320.0,0.898]
[1749020808754,1.25737993,105330.0,105320.0,0.898]
[1749020809180,1.27516594,105330.0,105320.0,0.898]
[1749020809400,1.25737993,105330.0,105320.0,0.898]
[1749020809832,1.27516594,105330.0,105320.0,0.898]
[1749020810043,1.25737993,105330.0,105320.0,0.898]
[1749020810727,1.27516738,105330.0,105320.0,0.898]
[1749020810946,1.25738137,105330.0,105320.0,0.898]
[1749020813151,1.27516738,105330.0,105320.0,0.898]
[1749020813375,1.25738137,105330.0,105320.0,0.898]
[1749020814509,1.27516855,105330.0,105320.0,0.898]
[1749020814734,1.25738137,105330.0,105320.0,0.60812]
[1749020814980,1.25738137,105330.0,105320.0,0.89772]
[1749020815429,1.25738144,105330.0,105320.0,0.89772]
[1749020816156,1.27516862,105330.0,105320.0,0.89772]
[1749020816372,1.25738144,105330.0,105320.0,0.89772]
[1749020816594,1.27516862,105330.0,105320.0,0.89772]
[1749020816817,1.25738144,105330.0,105320.0,0.89772]
[1749020817486,1.27516862,105330.0,105320.0,0.89772]
[1749020818294,1.25738144,105330.0,105320.0,0.89772]
[1749020818523,1.24827618,105330.0,105320.0,0.89772]
[1749020818759,1.25738172,105330.0,105320.0,0.89772]
[1749020819293,1.2751689,105330.0,105320.0,0.89772]
[1749020819509,1.25738172,105330.0,105320.0,0.89772]
[1749020820502,1.27516889,105330.0,105320.0,0.89772]
[1749020820714,1.25738172,105330.0,105320.0,0.89772]
[1749020821163,1.2751689,105330.0,105320.0,0.89756]
[1749020821411,1.27516937,105330.0,105320.0,0.89756]
[1749020822154,1.25738219,105330.0,105320.0,0.89756]
[1749020822386,1.27516937,105330.0,105320.0,0.89756]
[1749020822613,1.25738219,105330.0,105320.0,0.89756]
[1749020823258,1.27516937,105330.0,105320.0,0.89756]
[1749020823689,1.25738219,105330.0,105320.0,0.89756]
[1749020824124,1.27516937,105330.0,105320.0,0.89756]
[1749020824338,1.25738219,105330.0,105320.0,0.89756]
[1749020824554,1.27516937,105330.0,105320.0,0.89756]
[1749020824790,1.25738219,105330.0,105320.0,0.89756]
[1749020825262,1.27516946,105330.0,105320.0,0.89756]
[1749020825473,1.25738228,105330.0,105320.0,0.89756]
[1749020827285,1.27516946,105330.0,105320.0,0.89756]
[1749020827739,0.4648407,105330.0,105320.0,0.89756]
[1749020827994,1.25738228,105330.0,105320.0,0.89756]
[1749020828222,1.25738228,105330.0,105320.0,0.91286]
[1749020828477,0.0289864,105330.0,105320.0,0.92876]
[1749020828693,0.41615109,105330.0,105320.0,0.92876]
[1749020829809,0.0198803,105330.0,105320.0,0.92876]
[1749020830036,0.41615109,105330.0,105320.0,0.92876]
[1749020830260,0.43393755,105330.0,105320.0,0.92876]
[1749020830670,0.41615109,105330.0,105320.0,0.92876]
[1749020830881,0.43393755,105330.0,105320.0,0.92876]
[1749020831104,0.41615109,105330.0,105320.0,0.92876]
[1749020831310,0.41615109,105330.0,105320.0,0.9385113]
[1749020831526,0.43393755,105330.0,105320.0,0.9385113]
[1749020831722,0.41615109,105330.0,105320.0,0.9385113]
[1749020832995,0.43393755,105330.0,105320.0,0.9385113]
[1749020833196,0.41615109,105330.0,105320.0,0.9385113]
[1749020833895,0.43393755,105330.0,105320.0,0.9385113]
[1749020834253,0.41615109,105330.0,105320.0,0.9385113]
[1749020834675,0.43393755,105330.0,105320.0,0.9385113]
[1749020834892,0.41615109,105330.0,105320.0,0.9385113]
[1749020835083,0.43393755,105330.0,105320.0,0.92876]
[1749020835327,0.41615109,105330.0,105320.0,0.92876]
[1749020835460,0.43393755,105330.0,105320.0,0.92876]
[1749020835666,0.41615109,105330.0,105320.0,0.92876]
[1749020836978,0.0198803,105330.0,105320.0,0.92876]
[1749020837192,0.41615109,105330.0,105320.0,0.92876]
[1749020839416,0.0198803,105330.0,105320.0,0.92876]
[1749020839682,0.41615109,105330.0,105320.0,0.92876]
[1749020841676,0.41615109,105330.0,105320.0,0.92868]
[1749020846110,0.0198803,105330.0,105320.0,0.92868]
[1749020846317,0.41615109,105330.0,105320.0,0.92868]
[1749020849625,0.0198803,105330.0,105320.0,0.92868]
[1749020849847,0.0198803,105330.0,105320.0,1.32495079]
[1749020850051,0.0198803,105330.0,105320.0,0.92868]
[1749020863361,0.0198803,105330.0,105320.0,0.929569]
[1749020864163,0.3598803,105330.0,105320.0,0.929569]
[1749020866347,0.0198803,105330.0,105320.0,0.929569]
[1749020879560,0.0198803,105330.0,105320.0,0.640209]
[1749020879727,0.0198803,105330.0,105320.0,0.929249]
[1749020879928,0.75615109,105330.0,105320.0,0.929249]
[1749020880392,0.78745109,105330.0,105320.0,0.520049]
[1749020880631,0.78745109,105330.0,105320.0,0.608409]
[1749020880871,0.78745109,105330.0,105320.0,0.897849]
[1749020881111,0.78745109,105330.0,105320.0,0.897889]
[1749020881112,1.27957618,105330.0,105320.0,0.897889]
[1749020881342,1.27957618,105330.0,105320.0,0.608409]
[1749020881561,1.27957618,105330.0,105320.0,0.897889]
[1749020882006,0.4870346,105330.0,105320.0,0.897889]
[1749020882223,0.88330539,105330.0,105320.0,0.897889]
[1749020884731,0.4870346,105330.0,105320.0,0.897889]
[1749020884982,0.88330539,105330.0,105320.0,0.897889]
[1749020890564,0.88330539,105330.0,105320.0,0.608409]
[1749020890779,0.88330539,105330.0,105320.0,0.898009]
[1749020893770,0.88330539,105330.0,105320.0,0.608409]
[1749020893989,1.27957618,105330.0,105320.0,0.898089]
[1749020894212,0.88330539,105330.0,105320.0,0.898089]
[1749020895198,0.88330539,105330.0,105320.0,0.898169]
[1749020896433,1.27957618,105330.0,105320.0,0.898209]
[1749020897578,0.4870346,105330.0,105320.0,0.898209]
[1749020897800,1.27957618,105330.0,105320.0,0.898209]
[1749020899149,0.88330539,105330.0,105320.0,0.898209]
[1749020903926,0.86551657,105330.0,105320.0,0.898209]
[1749020906000,1.26178736,105330.0,105320.0,0.898209]
[1749020907672,0.86551657,105330.0,105320.0,0.898209]
[1749020922752,0.87462012,105330.0,105320.0,0.898209]
[1749020922992,0.47834933,105330.0,105320.0,0.898209]
[1749020923215,0.86551657,105330.0,105320.0,0.898209]
[1749020923438,0.87462224,105330.0,105320.0,0.898209]
[1749020927915,0.87462303,105330.0,105320.0,0.898209]
[1749020928976,0.87462303,105330.0,105320.0,0.520049]
[1749020929185,0.87462303,105330.0,105320.0,0.898369]
[1749020929822,0.87462303,105330.0,105320.0,0.520049]
[1749020930078,0.89240966,105330.0,105320.0,0.898329]
[1749020930285,0.87462303,105330.0,105320.0,0.898329]
[1749020930727,0.89240966,105330.0,105320.0,0.898329]
[1749020930906,0.87462303,105330.0,105320.0,0.898329]
[1749020931131,0.89240966,105330.0,105320.0,0.898329]
[1749020931544,0.87462303,105330.0,105320.0,0.898329]
[1749020931956,0.87462298,105330.0,105320.0,0.898329]
[1749020932862,0.87680961,105330.0,105320.0,0.898329]
[1749020933072,0.85902298,105330.0,105320.0,0.898329]
[1749020934144,0.84332298,105330.0,105320.0,0.898329]
[1749020935837,0.49421657,105330.0,105320.0,0.898329]
[1749020936021,0.50332289,105330.0,105320.0,0.898329]
[1749020936179,0.49421657,105330.0,105320.0,0.898329]
[1749020946128,0.49421657,105330.0,105320.0,0.897769]
[1749020951628,0.49421657,105330.0,105320.0,0.897809]
[1749020953351,0.50332254,105330.0,105320.0,0.897809]
[1749020957271,0.50332237,105330.0,105320.0,0.897809]
[1749020957521,0.50332235,105330.0,105320.0,0.897809]
[1749020960972,0.84332235,105330.0,105320.0,0.897809]
[1749020961404,0.8433223,105330.0,105320.0,0.897809]
[1749020961857,0.8433223,105330.0,105320.0,0.608809]
[1749020962097,0.84332234,105330.0,105320.0,0.897649]
[1749020962321,0.87462234,105330.0,105320.0,0.608809]
[1749020962549,1.27089313,105330.0,105320.0,0.608809]
[1749020962769,1.27089313,105330.0,105320.0,0.897849]
[1749020962770,1.33667054,105330.0,105320.0,0.897849]
[1749020963218,1.35445866,105330.0,105320.0,0.897849]
[1749020963451,1.33667054,105330.0,105320.0,0.897849]
[1749020963877,1.35445866,105330.0,105320.0,0.897849]
[1749020964527,1.33667054,105330.0,105320.0,0.897849]
[1749020965198,1.35442144,105330.0,105320.0,0.897849]
[1749020965420,1.33663332,105330.0,105320.0,0.897849]
[1749020966733,1.35442144,105330.0,105320.0,0.897849]
[1749020966968,1.33663332,105330.0,105320.0,0.897849]
[1749020967423,1.35442144,105330.0,105320.0,0.897849]
[1749020967664,1.33663332,105330.0,105320.0,0.897849]
[1749020967884,1.35442144,105330.0,105320.0,0.897849]
[1749020968097,1.33663332,105330.0,105320.0,0.897849]
[1749020969216,1.33662367,105330.0,105320.0,0.897849]
[1749020970588,1.35441179,105330.0,105320.0,0.897849]
[1749020970826,1.33662367,105330.0,105320.0,0.897849]
[1749020971724,1.35441179,105330.0,105320.0,0.897849]
[1749020971939,1.33662367,105330.0,105320.0,0.897849]
[1749020972175,1.2886716,105330.0,105320.0,0.897849]
[1749020972413,1.27088348,105330.0,105320.0,0.897849]
[1749020972858,1.28867149,105330.0,105320.0,0.897849]
[1749020973078,1.27088276,105330.0,105320.0,0.897849]
[1749020973306,1.28867077,105330.0,105320.0,0.897849]
[1749020973531,1.27088276,105330.0,105320.0,0.897849]
[1749020973961,1.28867077,105330.0,105320.0,0.897849]
[1749020974184,1.27088276,105330.0,105320.0,0.897849]
[1749020975178,1.28867077,105330.0,105320.0,0.897849]
[1749020975627,1.27088276,105330.0,105320.0,0.897849]
[1749020975844,1.28867077,105330.0,105320.0,0.897849]
[1749020976066,1.27088276,105330.0,105320.0,0.897849]
[1749020977068,1.26178736,105330.0,105320.0,0.897849]
[1749020977300,1.27088272,105330.0,105320.0,0.897849]
[1749020977968,1.27307073,105330.0,105320.0,0.897849]
[1749020978658,1.29085874,105330.0,105320.0,0.897849]
[1749020978874,1.25737073,105330.0,105320.0,0.897849]
[1749020979810,1.27515874,105330.0,105320.0,0.897849]
[1749020980029,1.25737073,105330.0,105320.0,0.897849]
[1749020980248,1.27515874,105330.0,105320.0,0.897849]
[1749020980711,1.25737073,105330.0,105320.0,0.897849]
[1749020981153,1.27515921,105330.0,105320.0,0.897849]
[1749020981855,1.2573712,105330.0,105320.0,0.897849]
[1749020982815,0.46482962,105330.0,105320.0,0.897849]
[1749020983094,1.2573712,105330.0,105320.0,0.897849]
[1749020984813,1.27515921,105330.0,105320.0,0.520049]
[1749020985088,1.2573712,105330.0,105320.0,0.896889]
[1749020986692,1.27515921,105330.0,105320.0,0.896889]
[1749020986927,1.2573712,105330.0,105320.0,0.896889]
[1749020991420,1.27515921,105330.0,105320.0,0.896889]
[1749020991641,1.2573712,105330.0,105320.0,0.896889]
[1749020991918,1.27515921,105330.0,105320.0,0.896889]
[1749020992133,1.2573712,105330.0,105320.0,0.896889]
[1749020992343,1.2731712,105330.0,105320.0,0.896889]
[1749020993031,1.26407537,105330.0,105320.0,0.896889]
[1749020993282,1.27318233,105330.0,105320.0,0.896889]
[1749020993902,1.29097004,105330.0,105320.0,0.896889]
[1749020994124,1.27318233,105330.0,105320.0,0.896889]
[1749020994801,1.29097004,105330.0,105320.0,0.896889]
[1749020995299,1.27318233,105330.0,105320.0,0.896889]
[1749020996382,1.29097004,105330.0,105320.0,0.896889]
[1749020997100,1.29096915,105330.0,105320.0,0.896889]
[1749020997580,1.27318144,105330.0,105320.0,0.896889]
[1749020998306,1.29096914,105330.0,105320.0,0.896889]
[1749020998551,1.27318144,105330.0,105320.0,0.896889]
[1749020999029,1.27318144,105330.0,105320.0,0.608249]
[1749020999266,1.29096469,105330.0,105320.0,0.896889]
[1749020999781,1.27318144,105330.0,105320.0,0.896889]
[1749021000227,1.29096469,105330.0,105320.0,0.896889]
[1749021000457,1.27318144,105330.0,105320.0,0.896889]
[1749021000698,1.27516469,105330.0,105320.0,0.896889]
[1749021000928,1.25738144,105330.0,105320.0,0.896889]
[1749021002052,1.27516469,105330.0,105320.0,0.896889]
[1749021002498,1.32310355,105330.0,105320.0,0.896889]
[1749021002920,1.3408868,105330.0,105320.0,0.896889]
[1749021003136,1.32310355,105330.0,105320.0,0.896889]
[1749021003602,1.27516469,105330.0,105320.0,0.896889]
[1749021003820,1.32311253,105330.0,105320.0,0.896889]
[1749021004026,1.34089578,105330.0,105320.0,0.896889]
[1749021004461,1.32311253,105330.0,105320.0,0.896889]
[1749021004674,1.32312267,105330.0,105320.0,0.896889]
[1749021005127,1.36939992,105330.0,105320.0,0.896889]
[1749021005354,1.36940437,105330.0,105320.0,0.896889]
[1749021005578,1.35161667,105330.0,105320.0,0.896889]
[1749021006503,1.36940437,105330.0,105320.0,0.896889]
[1749021006716,1.35161667,105330.0,105320.0,0.896889]
[1749021007146,1.38291667,105330.0,105320.0,0.896889]
[1749021007670,1.35077961,105330.0,105320.0,0.896889]
[1749021007901,1.40072068,105330.0,105320.0,0.896889]
[1749021008124,1.38293298,105330.0,105320.0,0.896889]
[1749021008341,1.38293298,105330.0,105320.0,0.520049]
[1749021008572,1.38293298,105330.0,105320.0,0.608169]
[1749021008800,1.38293298,105330.0,105320.0,0.896809]
[1749021009013,1.40072105,105330.0,105320.0,0.896809]
[1749021009225,1.38293298,105330.0,105320.0,0.896809]
[1749021009656,1.4007211,105330.0,105320.0,0.896809]